bitfinex-derivatives/quotes_BTCF0:USTF0_20241110
["timestamp","ask_amount","ask_price","bid_price","bid_amount"]
[1731282168843,0.2076965,80235.0,80234.0,0.38628184]
[1731282169341,0.3608,80250.0,80234.0,0.38628184]
[1731282169536,0.2076965,80236.0,80235.0,0.20012]
[1731282169934,0.2076965,80236.0,80235.0,0.38762346]
[1731282170637,0.2076965,80236.0,80235.0,1.88762346]
[1731282170828,0.3608,80250.0,80235.0,1.88762346]
[1731282171031,0.2076965,80242.0,80236.0,0.062262]
[1731282171230,0.2076965,80242.0,80237.0,0.062262]
[1731282171446,0.2076965,80242.0,80237.0,0.24862452]
[1731282171627,0.2076965,80242.0,80238.0,0.062261]
[1731282172031,0.2076965,80242.0,80239.0,0.18636252]
[1731282172235,0.3608,80250.0,80242.0,0.062258]
[1731282172429,0.3608,80250.0,80245.0,0.062256]
[1731282172632,0.2076965,80246.0,80245.0,0.062256]
[1731282173046,0.2076965,80246.0,80245.0,0.24847741]
[1731282173538,0.3608,80250.0,80245.0,0.18622141]
[1731282173843,0.2076965,80249.0,80243.0,0.18613911]
[1731282174238,0.2076965,80249.0,80247.0,0.062254]
[1731282174641,0.2076965,80249.0,80248.0,0.18710312]
[1731282176447,0.3608,80250.0,80249.0,0.062253]
[1731282176833,0.3608,80250.0,80249.0,0.24837554]
[1731282178444,0.3608,80250.0,80249.0,0.18612254]
[1731282178649,0.5684965,80250.0,80249.0,0.18612254]
[1731282179643,0.68792514,80250.0,80249.0,0.18612254]
[1731282179843,0.68792514,80250.0,80245.0,0.21667921]
[1731282180053,0.2076965,80246.0,80245.0,0.21667921]
[1731282180350,0.2076965,80246.0,80245.0,0.40442341]
[1731282180551,0.2076965,80246.0,80245.0,0.21266341]
[1731282180856,0.18264773,80231.0,80225.0,0.19176]
[1731282181147,0.18264773,80218.0,80217.0,0.03877018]
[1731282181343,0.54344773,80218.0,80217.0,0.02678661]
[1731282181544,0.54344773,80218.0,80217.0,0.21358351]
[1731282181748,0.54344773,80218.0,80217.0,0.21369938]
[1731282182346,0.54344773,80218.0,80217.0,0.02690248]
[1731282183154,0.54344773,80218.0,80217.0,0.21329836]
[1731282183446,0.18264773,80218.0,80217.0,0.21329836]
[1731282184251,0.54344773,80218.0,80217.0,0.21329836]
[1731282185464,0.54344773,80218.0,80217.0,0.00198537]
[1731282185654,0.11982998,80205.0,80194.0,1.53679223]
[1731282185954,0.11982998,80195.0,80194.0,1.53679223]
[1731282186153,0.11982998,80198.0,80194.0,1.53679223]
[1731282186349,0.11982998,80198.0,80195.0,0.18674678]
[1731282186551,0.11982998,80198.0,80196.0,9.18e-05]
[1731282186752,0.3608,80206.0,80196.0,0.18780925]
[1731282187061,0.11982998,80197.0,80196.0,0.18780925]
[1731282191958,0.3608,80206.0,80196.0,0.18780925]
[1731282192158,0.3608,80215.0,80205.0,0.11942864]
[1731282192456,0.3608,80215.0,80206.0,0.18699368]
[1731282192457,0.11982998,80214.0,80206.0,0.18699368]
[1731282192656,0.11982998,80214.0,80207.0,0.01558167]
[1731282192855,0.11982998,80214.0,80212.0,0.11942864]
[1731282193158,0.11982998,80214.0,80213.0,0.36339368]
[1731282193365,0.3608,80215.0,80214.0,0.06228]
[1731282193859,0.0058,80237.0,80214.0,2.36190656]
[1731282194160,0.11982998,80235.0,80234.0,0.11942864]
[1731282194361,0.11982998,80235.0,80234.0,0.29582864]
[1731282194557,0.11982998,80235.0,80234.0,0.48382407]
[1731282194750,0.11982998,80235.0,80234.0,1.86439543]
[1731282195370,0.3608,80241.0,80234.0,1.86439543]
[1731282195663,0.3608,80241.0,80238.0,0.062261]
[1731282196062,0.11982998,80239.0,80238.0,0.062261]
[1731282196362,0.11982998,80239.0,80238.0,0.24816057]
[1731282197559,0.0773243,80255.0,80238.0,0.24816057]
[1731282197560,0.3608,80249.0,80238.0,0.18589957]
[1731282197766,0.11982998,80242.0,80241.0,0.062259]
[1731282198161,0.11982998,80242.0,80241.0,0.24869334]
[1731282198965,0.0001243,80255.0,80248.0,0.062253]
[1731282199355,0.11982998,80249.0,80248.0,0.062253]
[1731282199859,0.11982998,80249.0,80248.0,0.24857338]
[1731282200062,0.11982998,80249.0,80248.0,0.18632038]
[1731282200365,0.11982998,80249.0,80247.0,0.17636]
[1731282200555,0.3608,80250.0,80247.0,0.17636]
[1731282200756,0.11982998,80248.0,80247.0,0.17636]
[1731282201250,0.11982998,80248.0,80247.0,0.36439304]
[1731282210175,0.11982998,80248.0,80247.0,0.38931137]
[1731282210771,0.11982998,80248.0,80247.0,0.38947046]
[1731282212968,0.3608,80250.0,80247.0,0.56836718]
[1731282213165,0.3608,80250.0,80249.0,0.062253]
[1731282213472,0.3608,80250.0,80249.0,0.18713955]
[1731282213865,0.3608,80250.0,80248.0,0.18713955]
[1731282214171,0.3608,80250.0,80249.0,1.68713955]
[1731282214368,0.0001243,80255.0,80249.0,1.5]
[1731282214567,0.0001243,80255.0,80253.0,0.062249]
[1731282214776,0.0001243,80255.0,80254.0,0.11920264]
[1731282214960,0.0001243,80255.0,80254.0,0.30583748]
[1731282215162,0.11995428,80255.0,80254.0,0.30583748]
[1731282215362,0.11995428,80255.0,80254.0,1.80583748]
[1731282215872,0.11995428,80255.0,80254.0,1.68663484]
[1731282216468,0.11995428,80255.0,80254.0,0.18663484]
[1731282216671,0.11995428,80255.0,80254.0,0.35503484]
[1731282216862,0.11995428,80255.0,80254.0,0.1684]
[1731282217170,0.11995428,80255.0,80254.0,0.35622267]
[1731282219471,0.06226,80240.0,80216.0,0.0370892]
[1731282219777,0.7216,80229.0,80223.0,0.02491624]
[1731282219975,0.7216,80229.0,80201.0,1.5]
[1731282219976,0.062276,80220.0,80201.0,1.5]
[1731282220274,0.7216,80229.0,80203.0,0.062288]
[1731282220275,0.3608,80206.0,80203.0,0.062288]
[1731282220576,0.3608,80206.0,80204.0,0.1871275]
[1731282221870,0.3608,80206.0,80204.0,0.21204374]
[1731282222175,0.3608,80216.0,80206.0,0.062286]
[1731282222381,0.3608,80216.0,80215.0,0.11920264]
[1731282222876,0.3608,80216.0,80215.0,0.30541584]
[1731282223173,0.3608,80216.0,80215.0,1.82862563]
[1731282223374,0.3608,80216.0,80215.0,1.90122563]
[1731282223976,0.3608,80216.0,80215.0,1.90122786]
[1731282224678,0.3608,80216.0,80215.0,1.89982799]
[1731282224981,0.3608,80216.0,80215.0,1.78062535]
[1731282225276,0.3608,80233.0,80215.0,2.85365249]
[1731282225576,0.0721,80250.0,80232.0,0.1789896]
[1731282225577,0.0058,80248.0,80232.0,0.1789896]
[1731282225776,0.3608,80250.0,80240.0,0.2412486]
[1731282226174,0.3608,80250.0,80241.0,0.18616501]
[1731282226375,0.3608,80250.0,80243.0,0.062257]
[1731282226767,0.3608,80250.0,80244.0,0.18750743]
[1731282228274,0.2944,80254.0,80249.0,0.062252]
[1731282228482,0.3609243,80255.0,80250.0,0.16844]
[1731282228674,0.3609243,80255.0,80251.0,1.5]
[1731282229074,0.3609243,80255.0,80252.0,0.18701391]
[1731282229275,0.0001243,80255.0,80254.0,0.062249]
[1731282229475,0.3608,80265.0,80254.0,0.062249]
[1731282229680,0.3608,80265.0,80257.0,0.1789896]
[1731282229872,0.3608,80265.0,80263.0,0.062241]
[1731282230274,0.3608,80270.0,80264.0,0.18674619]
[1731282230494,0.00014455,80266.0,80265.0,0.3474296]
[1731282230776,0.00014455,80266.0,80265.0,0.59706596]
[1731282230977,0.3608,80280.0,80269.0,0.062237]
[1731282231178,0.3608,80280.0,80271.0,0.062235]
[1731282231379,0.3608,80280.0,80270.0,1.5]
[1731282231380,0.3608,80290.0,80278.0,0.06223]
[1731282231677,0.3608,80290.0,80279.0,0.18778383]
[1731282231886,0.3608,80290.0,80280.0,0.1684]
[1731282232181,0.00014522,80282.0,80281.0,0.18778383]
[1731282232579,0.36094522,80282.0,80281.0,0.18778383]
[1731282233784,0.36094522,80282.0,80265.0,0.3608]
[1731282233785,0.73462522,80282.0,80278.0,0.03841275]
[1731282234087,0.3608,80279.0,80278.0,0.03841275]
[1731282234286,0.3608,80279.0,80271.0,0.18743575]
[1731282234483,0.3608,80272.0,80259.0,0.03818623]
[1731282234679,0.3608,80260.0,80254.0,0.4188]
[1731282234880,0.3608,80260.0,80255.0,0.35409052]
[1731282235091,0.3608,80260.0,80255.0,0.16752]
[1731282235387,0.3608,80260.0,80256.0,0.18657052]
[1731282235889,0.3608,80260.0,80257.0,0.16752]
[1731282237277,0.3608,80260.0,80258.0,0.18620144]
[1731282239673,0.3608,80260.0,80253.0,0.00011309]
[1731282239876,0.3608,80254.0,80253.0,0.00011309]
[1731282240473,0.3608,80254.0,80238.0,0.00186881]
[1731282240474,0.7346,80254.0,80241.0,0.16752]
[1731282240675,0.3608,80242.0,80241.0,0.16752]
[1731282241187,0.3608,80242.0,80241.0,0.35471584]
[1731282241579,0.3608,80242.0,80241.0,0.35487751]
[1731282241789,0.3608,80242.0,80241.0,0.41713651]
[1731282243780,0.3608,80242.0,80241.0,0.35487751]
[1731282245382,0.3608,80242.0,80241.0,1.85487751]
[1731282249492,0.3608,80242.0,80241.0,0.35487751]
[1731282250083,0.3608,80242.0,80241.0,1.85487751]
[1731282252199,0.2944,80253.0,80245.0,0.062255]
[1731282252492,0.2944,80253.0,80247.0,0.062254]
[1731282252796,0.2944,80253.0,80252.0,0.06225]
[1731282253096,0.2944,80253.0,80252.0,0.24915258]
[1731282253595,0.2944,80253.0,80252.0,0.18690258]
[1731282253989,0.2944,80253.0,80247.0,0.18739287]
[1731282254196,0.2944,80253.0,80252.0,0.18739287]
[1731282254495,0.2944,80253.0,80247.0,0.18739287]
[1731282254793,0.2944,80253.0,80252.0,0.18588803]
[1731282255798,0.2944,80253.0,80251.0,0.18643798]
[1731282255998,0.2944,80253.0,80252.0,0.18643798]
[1731282256199,0.2944,80253.0,80252.0,0.06225]
[1731282256495,0.2944,80253.0,80252.0,0.24868798]
[1731282256889,0.2944,80253.0,80252.0,0.06225]
[1731282257101,0.3608,80254.0,80252.0,0.24916917]
[1731282257399,0.3608,80254.0,80252.0,0.42815877]
[1731282257593,0.3608,80254.0,80253.0,0.0742]
[1731282257984,0.3608,80254.0,80253.0,0.26062211]
[1731282258596,0.3608,80257.0,80255.0,0.062247]
[1731282258788,0.3608,80257.0,80256.0,0.16752]
[1731282258991,0.3608,80257.0,80256.0,0.35533504]
[1731282259196,0.2944,80259.0,80257.0,0.062246]
[1731282259396,0.3608,80261.0,80257.0,0.062246]
[1731282259597,0.3608,80261.0,80259.0,0.062245]
[1731282259996,0.3608,80261.0,80260.0,0.18755952]
[1731282263096,0.6552,80261.0,80260.0,0.18755952]
[1731282263296,0.6552,80261.0,80257.0,0.24852902]
[1731282263504,0.6552,80261.0,80260.0,0.18628302]
[1731282263801,0.6552,80261.0,80258.0,0.18796699]
[1731282264001,0.6552,80261.0,80260.0,0.18796699]
[1731282264394,0.6552,80261.0,80258.0,0.18796699]
[1731282264596,0.6552,80261.0,80260.0,0.18639853]
[1731282264992,0.6552,80261.0,80259.0,0.24864353]
[1731282265207,0.6552,80261.0,80260.0,0.18639853]
[1731282265399,0.6552,80261.0,80259.0,0.062245]
[1731282265705,0.6552,80261.0,80260.0,0.18683582]
[1731282266403,0.6552,80261.0,80260.0,0.24907982]
[1731282266703,0.6552,80261.0,80260.0,0.062244]
[1731282267104,0.6552,80261.0,80260.0,0.24791268]
[1731282268097,0.6552,80261.0,80260.0,0.18566868]
[1731282268299,0.6552,80261.0,80260.0,0.24791268]
[1731282268300,0.2944,80261.0,80260.0,0.24791268]
[1731282268606,0.3608,80276.0,80275.0,0.062232]
[1731282268607,0.2944,80276.0,80275.0,0.062232]
[1731282268793,0.2944,80279.0,80278.0,0.06223]
[1731282268997,0.2944,80279.0,80278.0,1.56223]
[1731282269305,0.2944,80279.0,80278.0,1.74959339]
[1731282271903,0.2944,80281.0,80278.0,1.74959339]
[1731282272612,0.2944,80281.0,80279.0,0.11921533]
[1731282272903,0.2944,80281.0,80279.0,0.18560807]
[1731282273202,0.2944,80281.0,80279.0,1.68560807]
[1731282273404,0.2944,80281.0,80280.0,0.062229]
[1731282273701,0.3608,80288.0,80286.0,0.062224]
[1731282273899,0.3608,80288.0,80286.0,0.18143933]
[1731282274098,0.3608,80288.0,80286.0,0.36914102]
[1731282274300,0.3608,80290.0,80289.0,0.062222]
[1731282274503,0.1,80300.0,80290.0,0.062221]
[1731282274706,0.1,80300.0,80299.0,0.11921533]
[1731282274899,0.10010858,80300.0,80299.0,1.61921533]
[1731282277608,0.10010858,80300.0,80299.0,1.80649521]
[1731282278305,0.10010858,80300.0,80299.0,1.84395897]
[1731282279006,0.10010858,80300.0,80299.0,1.91775897]
[1731282280904,0.10010858,80300.0,80299.0,1.84395897]
[1731282283503,0.10010858,80300.0,80299.0,2.01095897]
[1731282285711,0.10010858,80300.0,80299.0,1.72474364]
[1731282286010,0.10010858,80300.0,80299.0,0.18727988]
[1731282286904,0.21932391,80300.0,80298.0,9.141e-05]
[1731282287107,0.3736,80299.0,80298.0,9.141e-05]
[1731282288408,0.6736,80299.0,80269.0,0.06410525]
[1731282288603,0.3608,80270.0,80269.0,0.06410525]
[1731282289110,0.3608,80270.0,80269.0,0.25051831]
[1731282289300,0.3608,80270.0,80269.0,0.2259585]
[1731282289605,0.3608,80270.0,80269.0,0.22605235]
[1731282290414,0.3608,80270.0,80269.0,0.25095888]
[1731282294210,0.3608,80270.0,80269.0,0.37017421]
[1731282294818,0.3608,80277.0,80269.0,0.25095888]
[1731282295406,0.3608,80277.0,80269.0,0.31319588]
[1731282296014,0.3608,80270.0,80269.0,0.25095888]
[1731282300424,0.3608,80270.0,80269.0,0.24909063]
[1731282300816,0.3608,80270.0,80269.0,0.36830596]
[1731282301125,0.3608,80277.0,80269.0,0.36830596]
[1731282301126,0.3608,80287.0,80269.0,0.36830596]
[1731282301314,0.3608,80287.0,80276.0,0.11921533]
[1731282301714,0.3608,80287.0,80277.0,0.18714321]
[1731282301921,0.3608,80287.0,80285.0,0.11921533]
[1731282302213,0.3608,80287.0,80286.0,0.18802677]
[1731282302418,0.48001533,80287.0,80286.0,0.18802677]
[1731282302628,1.15369533,80287.0,80278.0,0.18802677]
[1731282302815,0.062236,80271.0,80269.0,9.385e-05]
[1731282303122,0.55211533,80270.0,80269.0,9.385e-05]
[1731282303517,0.92587533,80270.0,80269.0,9.385e-05]
[1731282303716,1.22587533,80270.0,80269.0,9.385e-05]
[1731282304017,0.062239,80267.0,80248.0,0.20471044]
[1731282304322,0.3608,80255.0,80250.0,0.062251]
[1731282305529,0.3608,80255.0,80246.0,8.937e-05]
[1731282305530,0.062252,80250.0,80246.0,8.937e-05]
[1731282305716,0.3608,80255.0,80246.0,8.937e-05]
[1731282305717,0.3608,80247.0,80246.0,8.937e-05]
[1731282305912,0.423054,80247.0,80246.0,8.937e-05]
[1731282306318,0.3608,80247.0,80246.0,8.937e-05]
[1731282308226,0.423054,80247.0,80246.0,8.937e-05]
[1731282308724,0.871694,80247.0,80246.0,8.937e-05]
[1731282310324,1.10944,80247.0,80223.0,0.1664]
[1731282310518,0.3608,80226.0,80224.0,0.062272]
[1731282310715,0.3608,80226.0,80224.0,1.74904875]
[1731282311824,0.3608,80226.0,80224.0,0.24904875]
[1731282313625,0.3608,80226.0,80224.0,0.18677675]
[1731282313827,0.3608,80226.0,80220.0,0.11200443]
[1731282314329,0.3608,80226.0,80220.0,0.07470387]
[1731282314934,0.3608,80226.0,80222.0,0.062273]
[1731282315432,0.3608,80226.0,80220.0,0.07470387]
[1731282315734,0.3608,80226.0,80220.0,0.13697887]
[1731282316629,0.3626,80235.0,80224.0,0.11921533]
[1731282316831,0.3608,80235.0,80224.0,0.18148733]
[1731282317028,0.3608,80235.0,80225.0,0.18796658]
[1731282317227,0.48001533,80235.0,80225.0,0.18796658]
[1731282317434,0.3608,80235.0,80225.0,0.18796658]
[1731282318135,0.3608,80227.0,80220.0,0.07470387]
[1731282318429,0.3608,80227.0,80221.0,0.18794872]
[1731282320236,0.3608,80227.0,80223.0,0.062272]
[1731282320425,0.3608,80227.0,80225.0,0.062271]
[1731282321633,0.02492832,80255.0,80232.0,0.062265]
[1731282321634,0.4414,80247.0,80232.0,0.062265]
[1731282321837,0.3608,80247.0,80233.0,0.11921533]
[1731282323432,0.3608,80239.0,80225.0,0.062271]
[1731282323632,0.3608,80239.0,80185.0,0.0371803]
[1731282323633,0.11921533,80231.0,80220.0,0.36090387]
[1731282323938,0.48001533,80223.0,80220.0,0.00010387]
[1731282324834,0.3608,80223.0,80220.0,0.00010387]
[1731282328330,0.062274,80222.0,80220.0,0.00010387]
[1731282329232,0.3608,80223.0,80220.0,0.00010387]
[1731282329440,0.3608,80236.0,80221.0,0.18743947]
[1731282329833,0.3608,80236.0,80226.0,0.06227]
[1731282330035,0.3608,80236.0,80229.0,0.062268]
[1731282330433,0.3608,80236.0,80223.0,0.062272]
[1731282330637,0.3608,80236.0,80225.0,0.062271]
[1731282330638,0.3608,80229.0,80225.0,0.062271]
[1731282331134,0.3608,80229.0,80220.0,0.2573109]
[1731282331543,0.3608,80229.0,80222.0,0.18809208]
[1731282331845,0.3608,80229.0,80221.0,1.5]
[1731282332037,0.3608,80229.0,80223.0,0.18597619]
[1731282332345,0.3608,80229.0,80222.0,0.24825019]
[1731282332537,0.3608,80229.0,80222.0,0.062274]
[1731282332837,0.3608,80229.0,80223.0,0.18597619]
[1731282333245,0.3608,80229.0,80220.0,0.2573109]
[1731282333246,0.3608,80229.0,80222.0,0.18603793]
[1731282333431,0.04549731,80228.0,80220.0,0.0383109]
[1731282333743,0.3608,80229.0,80220.0,0.0383109]
[1731282333744,0.3608,80222.0,80221.0,0.18603793]
[1731282334040,0.3608,80222.0,80220.0,0.00010387]
[1731282334243,0.04505118,80221.0,80220.0,0.00010387]
[1731282334932,0.41901118,80221.0,80220.0,0.00010387]
[1731282335138,0.37396,80220.0,80196.0,0.3608]
[1731282335336,0.42215118,80221.0,80192.0,0.25501066]
[1731282335337,0.3608,80202.0,80192.0,0.25501066]
[1731282335558,0.3608,80195.0,80192.0,0.217]
[1731282335737,0.3608,80195.0,80193.0,0.18662133]
[1731282336044,0.00015197,80194.0,80193.0,0.18662133]
[1731282336432,0.00015197,80194.0,80192.0,0.062296]
[1731282336634,0.00015197,80194.0,80193.0,0.18715791]
[1731282338646,0.0058,80218.0,80193.0,0.35287791]
[1731282338853,0.04460182,80215.0,80204.0,0.17902409]
[1731282339143,0.3608,80226.0,80213.0,0.06228]
[1731282339343,0.3608,80226.0,80212.0,0.17902409]
[1731282339344,0.04539453,80225.0,80212.0,0.17902409]
[1731282339649,0.04542155,80224.0,80214.0,0.18659989]
[1731282339943,0.3608,80226.0,80213.0,0.06228]
[1731282339944,0.00013917,80223.0,80213.0,0.06228]
[1731282340145,0.00013917,80223.0,80215.0,0.18821749]
[1731282340337,0.00013917,80223.0,80214.0,0.18821749]
[1731282340537,0.00013917,80223.0,80213.0,0.06228]
[1731282340739,0.00013917,80223.0,80216.0,0.25049549]
[1731282340938,0.00013917,80223.0,80215.0,1.68821749]
[1731282341238,0.00013917,80223.0,80217.0,0.18721089]
[1731282341441,0.00013917,80223.0,80216.0,0.18721089]
[1731282341635,0.00013917,80223.0,80215.0,1.5]
[1731282341841,0.00013917,80223.0,80218.0,0.18721089]
[1731282342037,0.00013917,80223.0,80216.0,0.18615298]
[1731282342243,0.00013917,80223.0,80215.0,1.5]
[1731282342645,0.00013917,80223.0,80216.0,0.18615298]
[1731282343449,0.00013917,80223.0,80219.0,0.062276]
[1731282343640,0.00013917,80223.0,80216.0,0.18615298]
[1731282343838,0.00013917,80223.0,80215.0,1.5]
[1731282344147,0.00013917,80223.0,80221.0,0.062274]
[1731282344647,0.00013917,80223.0,80222.0,0.18735165]
[1731282346547,0.00013917,80223.0,80222.0,0.54815165]
[1731282346847,0.3608,80238.0,80228.0,0.062268]
[1731282347053,0.0459339,80237.0,80229.0,0.0766]
[1731282347248,0.0459339,80236.0,80235.0,0.062263]
[1731282347449,0.3608,80252.0,80235.0,0.062263]
[1731282347450,0.3608,80252.0,80236.0,0.17902409]
[1731282347652,0.04626112,80251.0,80245.0,0.17902409]
[1731282347857,0.0463644,80250.0,80248.0,8.963e-05]
[1731282348149,0.00186989,80266.0,80254.0,0.062249]
[1731282348350,0.03777937,80271.0,80254.0,0.062249]
[1731282348351,0.03777937,80271.0,80255.0,0.24072]
[1731282348556,0.3608,80272.0,80255.0,0.42761422]
[1731282349056,0.3608,80272.0,80263.0,0.17902409]
[1731282349057,0.1020519,80271.0,80263.0,0.17902409]
[1731282349245,0.0001381,80271.0,80264.0,0.062241]
[1731282349448,0.0001381,80271.0,80270.0,0.3608]
[1731282349646,0.0058,80291.0,80289.0,0.062222]
[1731282349849,0.3608,80297.0,80289.0,0.227902]
[1731282350049,0.3608,80297.0,80289.0,0.35283177]
[1731282350243,0.1,80300.0,80289.0,0.53185586]
[1731282350449,0.1,80300.0,80297.0,0.17902409]
[1731282350661,0.3608,80316.0,80298.0,0.00015776]
[1731282350862,0.3608,80329.0,80305.0,0.17902409]
[1731282351156,0.3608,80321.0,80307.0,0.3608]
[1731282351653,0.00016031,80320.0,80308.0,0.18760232]
[1731282353853,0.00016031,80320.0,80309.0,0.16488]
[1731282356957,0.00016031,80320.0,80310.0,0.18652159]
[1731282357164,0.00016031,80320.0,80319.0,0.062198]
[1731282358151,0.00016031,80320.0,80314.0,0.17902409]
[1731282358462,0.00016031,80320.0,80315.0,0.1866505]
[1731282359054,0.00016031,80320.0,80309.0,0.2020035]
[1731282359255,0.3608,80312.0,80309.0,0.2020035]
[1731282359558,0.3608,80311.0,80310.0,0.18623704]
[1731282359758,0.53982409,80311.0,80298.0,0.00015776]
[1731282360066,0.3608,80312.0,80301.0,0.17902409]
[1731282360252,0.3608,80312.0,80310.0,0.24122909]
[1731282360453,0.3608,80319.0,80317.0,0.0622]
[1731282360659,0.3608,80319.0,80306.0,0.5256]
[1731282360660,0.00016031,80320.0,80319.0,0.062198]
[1731282361160,0.00016031,80320.0,80318.0,0.36657731]
[1731282361161,0.00016031,80320.0,80311.0,0.062204]
[1731282361362,0.00016031,80320.0,80307.0,0.0717]
[1731282361662,0.00016031,80320.0,80319.0,0.18717323]
[1731282361860,0.00016031,80320.0,80309.0,0.062206]
[1731282362160,0.00016031,80320.0,80276.0,0.00253819]
[1731282362458,0.00016031,80320.0,80310.0,0.17902409]
[1731282362867,0.00016031,80320.0,80312.0,0.062203]
[1731282363160,0.00016031,80320.0,80313.0,0.18615275]
[1731282364758,0.3608,80315.0,80311.0,0.18558971]
[1731282365158,0.3608,80315.0,80307.0,0.133907]
[1731282365359,0.00016031,80320.0,80312.0,0.18573925]
[1731282365570,0.00016031,80320.0,80309.0,0.24794425]
[1731282365883,0.00016031,80320.0,80309.0,0.062205]
[1731282366076,0.00016031,80320.0,80310.0,0.18564396]
[1731282366280,0.00016031,80320.0,80317.0,0.0622]
[1731282366575,0.00016031,80320.0,80318.0,0.18564396]
[1731282367168,0.00016031,80320.0,80312.0,0.18564588]
[1731282367372,0.062205,80311.0,80306.0,0.03834814]
[1731282367583,0.3608,80308.0,80300.0,0.18950141]
[1731282367879,0.3608,80308.0,80301.0,0.18564588]
[1731282372388,0.3608,80306.0,80298.0,0.00015776]
[1731282372681,0.3608,80299.0,80298.0,0.00015776]
[1731282374089,0.91342409,80299.0,80298.0,0.00015776]
[1731282374387,1.03290863,80299.0,80279.0,0.16476]
[1731282374576,1.03290863,80299.0,80281.0,0.062227]
[1731282374577,0.3608,80287.0,80281.0,0.062227]
[1731282374781,0.3608,80287.0,80283.0,0.062226]
[1731282374982,0.3608,80287.0,80277.0,0.062231]
[1731282375190,0.3608,80287.0,80285.0,0.062224]
[1731282375387,0.36252001,80299.0,80291.0,0.06222]
[1731282375388,0.3608,80299.0,80291.0,0.06222]
[1731282375590,0.3608,80299.0,80286.0,0.18611746]
[1731282375591,0.0480701,80298.0,80286.0,0.18611746]
[1731282375782,0.3608,80299.0,80285.0,0.24834146]
[1731282375783,0.3608,80289.0,80285.0,0.24834146]
[1731282375982,0.3608,80289.0,80285.0,0.062224]
[1731282377079,0.0481462,80288.0,80283.0,9.937e-05]
[1731282377392,0.0481462,80287.0,80284.0,0.18651734]
[1731282377590,0.10269448,80286.0,80284.0,0.18651734]
[1731282377885,0.10269448,80285.0,80283.0,9.937e-05]
[1731282378085,0.10269448,80284.0,80283.0,9.937e-05]
[1731282378490,0.10238891,80284.0,80283.0,9.937e-05]
[1731282380890,0.10238891,80284.0,80283.0,0.18801639]
[1731282381196,0.04787418,80284.0,80283.0,0.18801639]
[1731282381787,0.04787418,80284.0,80283.0,1.68801639]
[1731282382487,0.3608,80289.0,80283.0,1.68801639]
[1731282382792,0.04706452,80288.0,80283.0,1.68801639]
[1731282382993,0.04706452,80287.0,80283.0,1.68801639]
[1731282383290,0.062225,80285.0,80283.0,0.18801639]
[1731282383586,0.10006261,80284.0,80283.0,9.937e-05]
[1731282384585,0.04686128,80284.0,80283.0,9.937e-05]
[1731282387288,0.42054128,80284.0,80283.0,9.937e-05]
[1731282387794,0.42054128,80284.0,80263.0,0.32594777]
[1731282387795,0.062228,80281.0,80270.0,0.062236]
[1731282388087,0.3608,80272.0,80270.0,0.062236]
[1731282388692,0.3608,80272.0,80263.0,0.1368]
[1731282388899,0.3608,80272.0,80264.0,0.00012792]
[1731282389082,0.3608,80272.0,80264.0,0.18785466]
[1731282389984,0.3608,80279.0,80264.0,0.18785466]
[1731282390189,0.04617083,80278.0,80271.0,0.062235]
[1731282390385,0.04617083,80277.0,80275.0,0.062232]
[1731282390589,0.00014572,80284.0,80283.0,0.062226]
[1731282390889,0.00014572,80284.0,80283.0,0.54732169]
[1731282391290,0.00014572,80284.0,80283.0,1.68652169]
[1731282392000,0.00014572,80284.0,80275.0,0.03793653]
[1731282392299,0.00014572,80284.0,80270.0,0.16424]
[1731282392300,0.00014572,80284.0,80276.0,0.18675611]
[1731282392692,0.3608,80277.0,80273.0,0.18675611]
[1731282392890,0.3608,80277.0,80270.0,0.20146765]
[1731282392891,0.04603681,80276.0,80270.0,0.16424]
[1731282393094,0.2250609,80275.0,80263.0,0.1368]
[1731282393302,0.3608,80267.0,80263.0,0.1368]
[1731282393507,0.04522688,80266.0,80263.0,0.1368]
[1731282393800,0.4567061,80265.0,80236.0,0.0735]
[1731282393990,0.3608,80244.0,80230.0,0.077]
[1731282394189,0.3608,80236.0,80230.0,0.077]
[1731282394891,0.3609524,80236.0,80230.0,0.077]
[1731282395490,0.0001524,80236.0,80230.0,0.077]
[1731282396186,0.0058,80259.0,80257.0,0.062246]
[1731282396391,0.3608,80269.0,80259.0,0.062244]
[1731282396598,0.3608,80269.0,80250.0,0.53982409]
[1731282396599,0.3608,80269.0,80258.0,0.54797139]
[1731282396895,0.3608,80269.0,80253.0,0.18717139]
[1731282397107,0.00015053,80268.0,80253.0,0.18717139]
[1731282397290,0.04504447,80267.0,80252.0,0.18735739]
[1731282397493,0.04504447,80266.0,80254.0,0.18735739]
[1731282397693,0.00015053,80268.0,80253.0,0.18735739]
[1731282398196,0.00015053,80268.0,80251.0,0.226531]
[1731282398394,0.00015053,80268.0,80254.0,0.18696771]
[1731282398596,0.00015053,80268.0,80253.0,0.18696771]
[1731282398790,0.00015053,80268.0,80252.0,0.06225]
[1731282399304,0.00015053,80268.0,80254.0,0.18612044]
[1731282399505,0.00015053,80268.0,80253.0,0.18612044]
[1731282399707,0.00015053,80268.0,80252.0,0.06225]
[1731282399907,0.00015053,80268.0,80254.0,0.18612044]
[1731282400297,0.00015053,80268.0,80252.0,0.06225]
[1731282400502,0.00015053,80268.0,80251.0,0.16428]
[1731282400806,0.00015053,80268.0,80254.0,0.18649229]
[1731282401109,0.00015053,80268.0,80253.0,0.062249]
[1731282401408,0.00015053,80268.0,80254.0,0.18687789]
[1731282404704,0.00015053,80268.0,80239.0,0.3608]
[1731282404705,0.3608,80255.0,80239.0,0.3608]
[1731282404909,0.3608,80255.0,80234.0,0.16428]
[1731282404910,0.3608,80248.0,80234.0,0.16428]
[1731282405109,0.3608,80248.0,80234.0,0.18919769]
[1731282405409,0.3608,80248.0,80237.0,0.18803969]
[1731282405708,0.3608,80248.0,80236.0,0.062262]
[1731282406005,0.3608,80248.0,80236.0,0.25030169]
[1731282406400,0.3608,80248.0,80236.0,0.062262]
[1731282406601,0.3608,80248.0,80234.0,0.02491769]
[1731282406602,0.3608,80248.0,80237.0,0.18748353]
[1731282406816,0.3608,80255.0,80245.0,0.3608]
[1731282407106,0.00015053,80268.0,80250.0,0.17902409]
[1731282407313,0.00015053,80268.0,80259.0,0.062244]
[1731282407607,0.00015053,80268.0,80258.0,0.17902409]
[1731282407608,0.00015053,80268.0,80260.0,0.18571394]
[1731282408000,0.00015053,80268.0,80259.0,0.18571394]
[1731282408199,0.00015053,80268.0,80261.0,0.18789633]